bitfinex/quotes_ETHUSD_20250605
["timestamp","ask_amount","ask_price","bid_price","bid_amount"]
[1749119878682,1.3107,2600.5,2600.2,3.84582254]
[1749119878847,0.55,2600.4,2600.2,3.84585393]
[1749119879048,0.55,2600.4,2600.1,19.84593295]
[1749119880292,3.91565024,2600.4,2600.1,19.84593295]
[1749119880977,1.3249,2600.7,2600.3,3.710057]
[1749119881177,1.3449,2600.9,2600.6,3.84520009]
[1749119881553,0.55,2600.8,2600.7,3.84511862]
[1749119881953,0.55,2600.8,2600.6,16.0]
[1749119882177,0.02,2600.9,2600.6,19.84516801]
[1749119882689,0.02,2600.9,2600.6,16.0]
[1749119882891,3.36565024,2600.8,2600.6,16.0]
[1749119883094,3.36565024,2600.8,2600.3,1.629]
[1749119883095,0.55,2600.5,2600.3,1.629]
[1749119883295,3.91565024,2600.5,2600.0,16.0]
[1749119883499,3.91565024,2600.1,2600.0,1.629]
[1749119884259,0.55,2600.3,2600.1,3.84592667]
[1749119884595,3.91565024,2600.3,2600.0,1.629]
[1749119885280,3.91565024,2600.3,2600.1,3.84591897]
[1749119885500,3.91565024,2600.3,2600.0,5.47512429]
[1749119887602,4.31630293,2600.3,2600.0,5.47512429]
[1749119888200,4.31630293,2600.3,2600.0,1.629]
[1749119888499,1.8723,2600.0,2599.9,2.139]
[1749119888872,1.8723,2600.0,2599.9,1.629]
[1749119889060,0.55,2600.0,2599.9,1.629]
[1749119890307,0.55,2600.1,2599.9,1.629]
[1749119890889,4.35032255,2600.1,2599.9,1.629]
[1749119891605,8.1963325,2600.1,2599.8,1.629]
[1749119891759,3.91565024,2599.9,2599.8,1.629]
[1749119892386,0.55,2599.8,2599.6,0.51]
[1749119892662,0.55,2599.8,2599.7,3.84659768]
[1749119893000,0.55,2600.0,2599.8,3.84637879]
[1749119893500,0.55,2600.0,2599.7,3.84651229]
[1749119894360,0.55,2600.0,2599.6,6.07593256]
[1749119894742,0.55,2600.0,2599.7,3.84652706]
[1749119895205,0.55,2600.1,2599.8,3.84641723]
[1749119895359,3.36565024,2599.9,2599.6,2.2292]
[1749119895561,3.36565024,2599.9,2599.6,5.98573637]
[1749119896699,3.36565024,2599.9,2599.6,5.98572956]
[1749119896895,3.36565024,2599.9,2599.6,5.98569942]
[1749119897999,3.36565024,2599.9,2599.6,2.139]
[1749119898303,5.81961048,2599.8,2599.6,0.51]
[1749119898526,5.81961048,2599.8,2599.7,1.629]
[1749119899897,5.81961048,2599.8,2597.8,0.20050482]
[1749119899898,5.81961048,2599.8,2598.8,13.84783097]
[1749119900231,7.76261483,2599.5,2598.9,7.906]
[1749119900390,0.55,2599.5,2599.1,10.0]
[1749119900589,0.55,2599.5,2599.2,19.84732095]
[1749119902227,0.55,2599.5,2599.2,3.84732095]
[1749119902442,4.3969896,2599.5,2599.3,1.629]
[1749119902641,0.55,2599.5,2599.3,1.629]
[1749119903544,3.84681435,2599.6,2599.3,1.629]
[1749119903745,0.85771622,2599.9,2599.4,3.84692616]
[1749119903746,3.36565024,2599.9,2599.4,3.84692616]
[1749119903949,3.846524,2599.8,2599.3,5.47612263]
[1749119904109,1.3494,2600.0,2599.0,10.51]
[1749119904110,4.71505024,2599.7,2599.0,0.51]
[1749119904310,0.55,2599.6,2599.1,1.629]
[1749119904646,0.55,2599.6,2599.2,3.84725763]
[1749119905470,3.36565024,2599.5,2599.1,3.8473716]
[1749119905667,3.36565024,2599.5,2599.3,1.629]
[1749119909135,3.36565024,2599.5,2599.4,1.629]
[1749119909335,3.91565024,2599.5,2599.4,1.629]
[1749119910104,3.91565024,2599.5,2599.0,16.20434642]
[1749119910105,1.9429,2599.4,2599.0,0.20434642]
[1749119910248,0.55,2599.0,2598.4,5.56769724]
[1749119910576,7.21343573,2598.9,2598.6,10.0]
[1749119910748,7.21343573,2598.9,2598.5,8.434622]
[1749119911146,3.36565024,2598.9,2598.5,6.82540277]
[1749119911346,3.36565024,2598.9,2598.6,10.0]
[1749119911546,3.36565024,2598.9,2598.6,3.84820242]
[1749119911961,3.36565024,2598.9,2598.5,19.84830987]
[1749119912592,7.21345202,2598.9,2598.5,19.84830987]
[1749119912992,3.8480326,2598.8,2598.4,17.7192]
[1749119913205,3.8480398,2598.8,2598.5,1.629]
[1749119913482,7.21377154,2598.7,2598.5,1.629]
[1749119913878,3.36565024,2598.7,2598.5,1.629]
[1749119914455,7.21373159,2598.7,2598.5,1.629]
[1749119914657,3.36565024,2598.7,2598.5,1.629]
[1749119914883,3.36565024,2598.7,2598.5,17.629]
[1749119915065,0.55,2598.7,2598.5,1.629]
[1749119915255,0.55,2598.7,2598.5,17.629]
[1749119915785,0.55,2598.9,2598.5,17.629]
[1749119916089,4.39785439,2598.9,2598.5,17.629]
[1749119916851,0.55,2599.0,2598.6,3.84812504]
[1749119917052,4.72185024,2599.2,2598.6,19.8482]
[1749119917276,11.00085024,2599.2,2598.8,13.84786424]
[1749119917509,11.00085024,2599.2,2598.9,10.0]
[1749119917711,4.72185024,2599.2,2598.9,10.0]
[1749119917915,4.16804622,2599.3,2598.9,3.84770962]
[1749119918226,4.16804622,2599.3,2598.9,3.84777974]
[1749119918530,4.16811766,2599.3,2599.0,1.63]
[1749119918684,0.32084872,2599.3,2599.0,1.63]
[1749119919322,0.32084872,2599.3,2599.0,16.0]
[1749119919627,0.32084872,2599.3,2599.1,1.63]
[1749119920015,3.36565024,2599.2,2599.1,1.63]
[1749119920429,0.32084872,2599.3,2599.1,1.63]
[1749119922030,4.16806005,2599.3,2599.1,1.63]
[1749119922218,0.32084872,2599.3,2599.1,1.63]
[1749119922732,0.55,2599.2,2599.1,1.63]
[1749119924635,3.91565024,2599.2,2599.1,1.63]
[1749119925502,3.91565024,2599.2,2598.8,19.8478279]
[1749119925648,5.24445024,2599.2,2599.1,1.63]
[1749119926560,3.91565024,2599.2,2599.1,1.63]
[1749119926971,0.55,2599.2,2599.1,5.47748566]
[1749119927480,0.55,2599.2,2599.1,1.63]
[1749119928483,0.55,2598.8,2598.7,0.51]
[1749119928699,0.55,2598.8,2598.7,2.14]
[1749119928902,0.55,2598.9,2598.7,1.63]
[1749119930861,3.91565024,2598.8,2598.7,1.63]
[1749119931093,7.76358005,2598.8,2598.7,1.63]
[1749119931266,10.26711921,2598.8,2598.7,1.63]
[1749119932011,10.26711921,2598.8,2598.0,3.84908487]
[1749119932012,4.98356238,2598.1,2595.4,0.51]
[1749119932170,30.0,2598.5,2593.2,0.21460295]
[1749119932171,3.85505011,2594.0,2593.2,0.21460295]
[1749119932371,3.85505011,2594.0,2592.0,0.00886]
[1749119932372,3.85772702,2592.2,2591.0,0.00931547]
[1749119932693,6.79621664,2591.1,2590.5,7.11445374]
[1749119932901,37.67836283,2590.6,2590.5,6.34525374]
[1749119933210,28.27140168,2590.1,2587.2,0.34004392]
[1749119933407,9.08940917,2590.5,2587.6,3.229]
[1749119933408,0.45334939,2588.1,2587.6,3.229]
[1749119933724,0.94834872,2590.0,2587.2,10.72350439]
[1749119933725,3.41262625,2589.2,2587.7,38.3]
[1749119933924,1.52951863,2588.5,2587.8,2.536321]
[1749119934066,0.6275,2590.0,2587.8,2.536321]
[1749119934067,0.6894418,2588.4,2587.8,1.0836321]
[1749119934265,0.6894418,2588.3,2587.2,2.8877]
[1749119934513,1.3473,2589.9,2587.4,3.86485626]
[1749119934697,3.41314236,2588.7,2587.2,10.0]
[1749119934866,0.32084872,2588.6,2587.4,5.041211]
[1749119935066,0.32084872,2588.6,2587.1,6.895]
[1749119935291,0.32084872,2588.6,2587.3,10.0]
[1749119935500,1.3473,2588.4,2587.4,10.0]
[1749119935677,3.05903726,2588.5,2587.2,24.960135]
[1749119935678,0.32084872,2588.3,2587.2,24.960135]
[1749119935889,0.32084872,2588.3,2587.1,6.895]
[1749119935890,1.3473,2588.2,2587.1,6.895]
[1749119936307,7.6040259,2587.2,2585.1,0.02]
[1749119936519,2.95540412,2587.2,2585.1,0.02]
[1749119936704,1.3319,2587.1,2585.1,0.02]
[1749119936873,3.86667697,2586.2,2585.1,0.02]
[1749119937079,22.57404375,2586.2,2585.1,0.02]
[1749119937281,22.57404375,2586.2,2584.1,7.23590909]
[1749119937282,3.86951979,2584.3,2584.1,7.23590909]
[1749119937490,3.46071979,2584.3,2584.1,7.23590909]
[1749119938016,3.86981927,2584.1,2583.9,3.64112538]
[1749119938197,1.3125,2583.9,2581.7,8.89346986]
[1749119938399,14.29040412,2585.1,2582.1,10.282]
[1749119938595,11.341,2585.6,2582.1,10.282]
[1749119938799,3.86772384,2585.5,2582.1,10.282]
[1749119939009,0.32084872,2585.4,2583.2,2.190316]
[1749119939186,0.52,2585.9,2583.4,30.0]
[1749119939388,4.38715136,2585.9,2583.5,11.155355]
[1749119939619,9.4180021,2585.6,2583.4,8.32]
[1749119939771,68.54652156,2580.0,2579.2,1.9689865]
[1749119940008,3.87687059,2579.4,2579.3,0.32364696]
[1749119940212,68.54652156,2580.0,2579.8,2.80477648]
[1749119940213,46.07549932,2580.0,2579.8,2.80477648]
[1749119940448,49.01890042,2580.0,2579.9,17.33353]
[1749119940620,45.14293143,2580.0,2579.9,15.251473]
[1749119940819,43.80513143,2580.0,2579.9,15.251473]
[1749119941053,43.61432547,2580.0,2579.9,15.251473]
[1749119941415,1.2564,2583.2,2582.4,9.241499]
[1749119941609,3.87100217,2583.4,2582.4,9.241499]
[1749119941610,1.2564,2584.0,2582.4,8.370242]
[1749119941811,3.86877127,2584.8,2582.4,8.370242]
[1749119942171,3.0,2583.8,2582.4,8.370242]
[1749119942371,3.0,2583.8,2582.3,14.5421]
[1749119942372,0.02,2582.9,2582.6,40.0]
[1749119942673,0.02,2584.9,2584.2,30.0]
[1749119942873,0.32084872,2584.8,2584.4,28.303889]
[1749119943157,0.32084872,2584.8,2584.6,30.0]
[1749119943359,0.32084872,2584.8,2584.7,3.6342]
[1749119943569,0.32084872,2584.8,2584.6,10.0]
[1749119943772,0.32084872,2584.8,2584.7,30.0]
[1749119943918,0.32084872,2584.8,2584.7,30.39190395]
[1749119944119,0.32084872,2584.8,2584.7,26.2870463]
[1749119944329,0.32084872,2584.8,2584.5,40.0]
[1749119944676,0.32084872,2584.8,2584.7,3.86892095]
[1749119944816,0.32084872,2584.8,2584.7,49.86892095]
[1749119945158,0.02,2584.9,2584.8,49.86877127]
[1749119945356,0.02,2584.9,2584.8,53.73866543]
[1749119945544,0.02,2585.9,2585.1,3.86818221]
[1749119945749,0.02,2585.9,2585.2,33.86817267]
[1749119946547,0.02,2585.9,2585.2,49.86817267]
[1749119946860,0.02,2585.9,2585.4,30.0]
[1749119947058,0.02,2585.9,2585.6,36.038769]
[1749119947356,0.02,2585.9,2585.6,26.038769]
[1749119947557,0.02,2585.9,2585.6,23.368963]
[1749119947736,0.02,2585.9,2585.6,19.281654]
[1749119948523,0.02,2585.9,2585.8,27.383305]
[1749119948754,0.02,2585.9,2585.8,27.8623345]
[1749119949659,0.02,2585.9,2585.8,12.6442695]
[1749119950226,0.02,2585.9,2585.8,28.6442695]
[1749119950431,0.02,2586.9,2585.9,30.0]
[1749119951268,0.02,2586.9,2585.9,21.0]
[1749119951469,0.02,2586.9,2586.1,31.0]
[1749119951683,0.02,2586.9,2586.1,30.0]
[1749119951887,0.57,2586.9,2585.9,10.0]
[1749119952183,0.57,2586.9,2585.7,8.338]
[1749119952184,0.02,2586.9,2586.2,10.0]
[1749119952364,0.02,2586.9,2586.0,0.51]
[1749119952568,0.02,2586.9,2586.1,2.275308]
[1749119952749,0.02,2586.9,2586.2,2.270385]
[1749119953541,0.02,2586.9,2586.2,4.801435]
[1749119953871,0.55,2586.6,2585.8,15.954062]
[1749119954071,0.02,2586.9,2586.0,10.0]
[1749119954371,0.02,2586.9,2586.2,10.0]
[1749119954557,0.02,2586.9,2586.4,3.340055]
[1749119954873,0.02,2586.9,2586.6,10.0]
[1749119955173,0.02,2586.9,2586.7,10.0]
[1749119955373,0.02,2586.9,2586.7,3.524676]
[1749119955580,0.02,2586.9,2586.7,0.32272107]
[1749119955976,0.02,2586.9,2586.8,2.810012]
[1749119956136,0.02,2586.9,2586.8,3.1327206]
[1749119956342,0.02,2586.9,2586.8,6.99850071]
[1749119956635,0.02,2586.9,2586.8,3.86578011]
[1749119956873,0.02,2586.9,2586.8,25.03532911]
[1749119957067,0.02,2586.9,2586.8,27.92545379]
[1749119957833,0.02,2586.9,2586.8,3.521]
[1749119958034,0.02,2586.9,2586.4,16.0]
[1749119958238,0.02,2586.9,2586.5,30.0]
[1749119958491,0.02,2586.9,2586.6,16.0]
[1749119958694,0.02,2586.9,2586.8,46.0]
[1749119958981,0.02,2586.9,2586.8,34.62827016]
[1749119959142,0.02,2586.9,2585.8,40.0]
[1749119959339,0.02,2586.9,2586.0,30.0]
[1749119959574,0.02,2586.9,2586.2,35.730749]
[1749119959757,0.02,2586.9,2585.7,30.0]
[1749119959943,0.02,2586.9,2586.4,2.606335]
[1749119960144,0.02,2586.9,2586.5,2.367482]
[1749119960357,0.02,2586.9,2586.5,10.0]
[1749119960684,0.02,2586.9,2586.4,10.0]
[1749119960842,0.02,2586.9,2586.2,8.339]
[1749119961036,0.02,2586.9,2585.7,29.039313]
[1749119961037,0.02,2586.9,2586.0,8.339]
[1749119961375,0.02,2586.9,2586.1,22.766098]
[1749119961580,0.02,2586.9,2586.1,22.322361]
[1749119961879,0.02,2586.9,2586.2,0.21372182]
[1749119962048,0.02,2586.9,2586.1,22.322361]
[1749119962049,0.02,2586.9,2586.3,0.21371516]
[1749119962249,0.02,2586.9,2586.5,28.781042]
[1749119962449,0.02,2586.9,2586.7,38.090084]
[1749119962450,0.3585261,2586.8,2586.7,38.090084]
[1749119962666,0.02,2586.9,2586.8,18.049246]
[1749119962878,0.02,2586.9,2586.8,18.2630654]
[1749119963079,0.02,2586.9,2586.8,13.3353184]
[1749119963647,0.02,2586.9,2586.8,12.14508997]
[1749119963843,0.02,2586.9,2586.8,0.21380904]
[1749119964043,0.38258686,2586.9,2586.8,0.2140851]
[1749119964469,0.38258686,2586.9,2586.8,0.21408918]
[1749119964674,0.38282373,2586.9,2586.8,0.21420544]
[1749119964989,3.86610783,2586.6,2586.0,8.339]
[1749119965164,0.36282373,2586.5,2585.9,3.86710928]
[1749119965373,0.36282373,2586.4,2585.8,10.0]
[1749119965573,0.36030001,2586.3,2586.0,10.0]
[1749119965759,0.60421911,2586.8,2586.1,0.2146011]
[1749119965939,3.86616704,2586.6,2586.2,0.21460687]
[1749119966153,0.60421911,2586.8,2585.6,1.3683]
[1749119966365,3.86660469,2586.3,2585.6,10.0]
[1749119966575,3.86660469,2586.3,2585.8,10.0]
[1749119966771,0.62421911,2586.9,2586.2,3.86657053]
[1749119967000,0.02,2586.9,2586.2,10.89846135]
[1749119967203,0.02,2586.9,2586.6,3.86599024]
[1749119967397,0.02,2586.9,2586.7,0.21457141]
[1749119967556,0.02,2586.9,2586.8,0.21457141]
[1749119967759,0.02,2586.9,2586.2,10.0]
[1749119967960,0.02,2586.9,2586.4,10.0]
[1749119968264,0.02,2586.9,2586.6,3.86600416]
[1749119968459,0.02,2586.9,2585.9,3.86708832]
[1749119968715,0.02,2586.9,2586.1,2.64]
[1749119968863,3.8660118,2586.7,2586.2,0.21473291]
[1749119969219,3.86597053,2586.7,2586.3,0.21473291]
[1749119969509,0.00593489,2586.6,2586.4,0.21551758]
[1749119969818,0.55593489,2586.6,2586.5,0.21559719]
[1749119969962,0.55593489,2586.6,2586.5,0.21562273]
[1749119969963,0.00593489,2586.6,2586.5,0.21562273]
[1749119970158,0.00593489,2586.6,2585.5,14.6928]
[1749119970159,0.00593489,2586.6,2585.9,10.0]
[1749119970406,0.00593489,2586.6,2586.2,3.86660046]
[1749119970609,0.00593489,2586.6,2586.3,0.21559543]
[1749119970757,3.86622849,2586.5,2586.4,0.21559543]
[1749119970962,3.86622849,2586.5,2586.4,0.20966054]
[1749119971213,1.13432067,2586.7,2586.0,10.0]
[1749119971374,0.61209511,2586.1,2586.0,3.86697602]
[1749119971690,1.13432067,2586.8,2586.0,3.86697602]
[1749119971691,0.61209511,2586.3,2586.1,3.86674299]
[1749119971910,0.61209511,2586.3,2586.2,17.71061897]
[1749119972105,0.61209511,2586.4,2586.0,14.575913]
[1749119972314,0.61388917,2586.3,2586.2,13.86667697]
[1749119972494,0.61388917,2586.5,2586.3,20.51538647]
[1749119972702,0.61388917,2586.5,2586.4,3.86637797]
[1749119972895,0.61388917,2586.5,2586.2,15.008189]
[1749119973076,0.02,2586.9,2586.1,15.66375157]
[1749119973077,0.61388917,2586.4,2586.1,15.66375157]
[1749119973297,1.15432067,2586.9,2586.3,3.86642649]
[1749119973503,0.02,2586.9,2586.5,10.0]
[1749119973701,0.02,2586.9,2586.3,17.70823534]
[1749119973903,0.02,2586.9,2586.1,11.797]
[1749119973904,0.02,2586.9,2586.6,3.8659749]
[1749119974103,0.02,2586.9,2586.3,10.0]
[1749119974313,0.02,2586.9,2586.7,10.0]
[1749119974629,0.02,2586.9,2586.5,19.231833]
[1749119974917,0.02,2586.9,2586.4,8.34]
[1749119975083,3.86604093,2586.7,2586.4,8.34]
[1749119975479,3.86604093,2586.7,2488.2,12.15]
[1749119975480,0.55,2586.6,2585.7,3.924978]
[1749119975685,1.68432067,2586.6,2585.1,2.115114]
[1749119975924,0.61535904,2585.3,2585.1,3.715071]
[1749119976221,0.61535904,2585.4,2585.2,13.86814852]
[1749119976431,1.08301304,2586.1,2585.3,10.0]
[1749119976641,3.86624505,2586.5,2585.4,11.692]
[1749119976820,3.86667734,2586.2,2585.5,3.86757943]
[1749119976981,3.86592956,2586.7,2585.8,10.0]
[1749119976982,0.55,2586.7,2585.8,10.0]
[1749119977190,1.5907,2586.8,2585.9,10.0]
[1749119977420,1.5907,2586.8,2585.4,20.032]
[1749119977421,0.55,2586.7,2585.6,10.0]
[1749119977737,3.86690879,2586.1,2585.6,10.0]
[1749119978044,0.36891414,2586.0,2585.5,10.0]
[1749119978200,0.36891414,2585.9,2585.6,13.001283]
[1749119978406,0.55,2586.5,2585.4,8.34]
[1749119978407,0.36891414,2585.8,2585.4,8.34]
[1749119978710,0.36891414,2585.7,2585.4,8.34]
[1749119978926,0.36891414,2585.6,2585.5,7.594774]
[1749119979128,0.36891414,2585.6,2585.5,2.25291]
[1749119979424,3.86667848,2586.2,2585.6,10.0]
[1749119979591,0.21407,2586.6,2585.6,10.0]
[1749119979592,0.36876756,2586.1,2585.6,13.86749848]
[1749119979788,4.23583817,2586.0,2585.5,10.0]
[1749119980106,0.36876756,2585.9,2585.6,10.0]
[1749119980306,0.21407,2586.6,2585.4,8.34]
[1749119980307,0.36876756,2585.8,2585.4,8.34]
[1749119980514,0.36876756,2585.7,2585.4,8.34]
[1749119980713,0.36876756,2585.6,2585.0,1.3304]
[1749119980896,25.61405282,2586.9,2584.5,3.86913336]
[1749119980897,0.36876756,2585.5,2584.5,3.86913336]
[1749119981098,0.55,2585.3,2584.4,8.341]
[1749119981297,9.59405282,2584.9,2584.1,0.02]
[1749119981524,3.86966953,2584.2,2584.1,0.02]
[1749119981699,4.23843709,2584.2,2584.1,0.02]
[1749119982046,4.23843709,2584.2,2583.3,10.0]
[1749119982047,3.87236679,2582.4,2582.3,1.6861]
[1749119982226,4.24113435,2582.4,2582.3,1.6861]
[1749119982942,0.36876756,2582.4,2582.3,1.6861]
[1749119983088,3.8702219,2583.9,2582.4,14.555285]
[1749119983287,0.36625772,2583.1,2582.3,1.6861]
[1749119983492,5.41382544,2583.2,2582.5,10.0]
[1749119983742,3.87076385,2583.5,2582.6,3.8719722]
[1749119983889,0.36611993,2583.4,2582.7,3.87182335]
[1749119984089,3.87067754,2583.6,2582.8,15.369486]
[1749119984342,1.6153,2583.7,2582.9,10.0]
[1749119984535,1.5533,2584.7,2583.1,10.0]
[1749119984723,0.65153037,2584.6,2583.3,29.048718]
[1749119985082,0.65153037,2584.5,2582.6,46.0]
[1749119985192,3.86966574,2584.3,2583.7,3.118]
[1749119985393,0.28607189,2584.2,2582.9,10.0]
[1749119985627,0.28607189,2584.2,2583.3,3.87090936]
[1749119985832,4.15578364,2584.2,2583.3,9.88982854]
[1749119986130,3.86969387,2584.2,2583.6,10.0]
[1749119986432,3.86952034,2584.3,2583.7,10.0]
[1749119986732,3.0,2584.5,2583.5,10.0]
[1749119986893,3.0,2584.5,2583.6,5.203]
[1749119987095,3.0,2584.5,2583.7,14.447645]
[1749119987321,3.0,2584.5,2584.0,10.0]
[1749119987521,3.0,2584.5,2583.3,1.5193]
[1749119987522,6.86926112,2584.5,2583.3,1.5193]
[1749119987720,3.0,2584.5,2584.0,3.86993846]
[1749119987932,3.0,2584.5,2584.0,24.36598012]
[1749119988232,2.97015208,2584.5,2584.0,3.87494282]
[1749119988435,2.97015208,2584.5,2584.0,0.005]
[1749119988643,2.97015208,2584.5,2584.1,3.86970725]
[1749119988813,2.97015208,2584.5,2584.1,10.0]
[1749119988997,2.97015208,2584.5,2584.3,34.575211]
[1749119989304,2.97015208,2584.5,2584.1,10.0]
[1749119990021,2.97015208,2584.5,2584.3,24.413544]
[1749119990209,2.97015208,2584.5,2584.4,3.86937006]
[1749119991033,2.97015208,2584.5,2584.4,6.84317006]
[1749119991336,2.97015208,2584.5,2584.4,8.49198527]
[1749119991631,2.97015208,2584.5,2584.4,7.42071706]
[1749119991836,2.97015208,2584.5,2584.4,8.93871706]
[1749119992007,0.02,2584.9,2584.8,33.86877127]
[1749119992335,0.02,2584.9,2584.8,3.86877127]
[1749119992541,0.02,2584.9,2584.8,19.34464527]
[1749119992788,0.02,2584.9,2584.8,3.86877127]
[1749119993135,0.02,2584.9,2584.5,10.0]
[1749119993459,0.02,2584.9,2584.2,15.11063421]
[1749119993659,0.02,2584.9,2584.8,7.14544827]
[1749119993860,0.02,2584.9,2584.8,3.86877127]
[1749119994081,0.02,2584.9,2584.8,6.97944827]
[1749119994687,0.02,2584.9,2584.8,3.86877127]
[1749119994839,0.02,2584.9,2584.8,6.96959827]
[1749119995036,0.02,2584.9,2584.8,3.86877127]
[1749119995487,0.02,2584.9,2584.8,8.72613527]
[1749119995651,0.02,2584.9,2584.8,9.49990284]
[1749119996390,0.02,2584.9,2584.8,8.72613527]
[1749119997581,0.01587988,2584.9,2584.8,8.72613527]
[1749119998983,0.01587988,2584.9,2584.8,26.24523527]
[1749119999380,0.01587988,2584.9,2584.8,37.31723527]
[1749119999886,0.01587988,2584.9,2584.8,8.72613527]
[1749120000416,0.01587988,2584.9,2584.8,9.5987488]
[1749120000629,0.01587988,2584.9,2584.8,8.72613527]
[1749120001490,0.01587988,2584.9,2584.8,4.857364]
[1749120001696,0.01587988,2584.9,2584.1,2.386]
[1749120001893,0.01587988,2584.9,2584.8,15.81795127]
[1749120002092,0.01587988,2584.9,2584.8,33.78663786]
[1749120002621,0.01587988,2584.9,2584.8,44.78663786]
[1749120002935,0.01587988,2584.9,2584.8,46.33083786]
[1749120003079,0.02,2585.9,2585.8,24.80077311]
[1749120003280,0.02,2585.9,2585.8,22.90557311]
[1749120003927,0.02,2585.9,2585.8,33.09174911]
[1749120004284,0.02,2585.9,2585.8,17.09174911]
[1749120004796,0.02,2585.9,2585.8,34.64084911]
[1749120004998,0.02,2585.9,2585.8,37.33874889]
[1749120005204,0.02,2585.9,2585.8,48.26474889]
[1749120005733,0.02,2585.9,2585.8,48.24974889]
[1749120007592,0.02,2585.9,2585.8,48.18874889]
[1749120008818,0.02,2585.9,2585.8,48.15274889]
[1749120009725,0.02,2586.9,2586.8,33.86578011]
[1749120009921,0.02,2586.9,2586.8,37.257019]
[1749120010156,0.02,2586.9,2586.8,14.77870511]
[1749120010636,0.02,2586.9,2586.8,30.77870511]
[1749120010864,0.02,2586.9,2586.8,32.43770511]
[1749120011174,0.02,2586.9,2586.8,30.77870511]
[1749120012435,0.02,2586.9,2586.8,41.49670511]
[1749120013068,0.02,2586.9,2586.8,30.77870511]
[1749120013671,0.02,2586.9,2586.8,41.45870511]
[1749120013872,0.02,2586.9,2586.8,30.25870511]
[1749120014029,0.02,2586.9,2586.8,31.17278011]
[1749120014229,0.02,2586.9,2586.8,12.20878011]
[1749120015619,0.02,2586.9,2586.1,8.34]
[1749120015620,1.6098,2586.9,2586.1,8.34]
[1749120015776,1.6098,2586.9,2586.5,3.86615936]
[1749120015966,1.6098,2586.9,2586.8,3.86578011]
[1749120015967,0.02,2586.9,2586.8,3.86578011]
[1749120016631,0.02,2586.9,2586.2,26.660104]
[1749120016763,0.02,2586.9,2586.8,13.73532811]
[1749120017274,0.02,2586.9,2586.8,6.96831411]
[1749120017880,0.02,2586.9,2586.8,22.96831411]
[1749120019612,0.02,2586.9,2586.8,35.13891411]
[1749120020403,0.02,2586.9,2586.8,35.61447072]
[1749120021009,0.02,2586.9,2586.8,37.6030484]
[1749120021515,0.02,2586.9,2586.8,38.1530484]
[1749120021682,0.02,2587.9,2587.8,3.86428626]
[1749120021878,0.02,2587.9,2587.8,68.66128626]
[1749120022279,0.02,2587.9,2587.8,70.15441624]
[1749120022841,0.02,2587.9,2587.8,59.69441624]
[1749120023012,0.02,2587.9,2587.8,70.12341624]
[1749120024413,0.02,2587.9,2587.8,59.69441624]
[1749120024617,0.02,2587.9,2587.8,68.59128626]
[1749120026026,0.02,2588.9,2587.9,33.86409326]
[1749120026190,0.02,2588.9,2588.2,34.821578]
[1749120026391,0.02,2588.9,2588.5,16.0]
[1749120026605,0.02,2588.9,2588.8,10.34718357]
[1749120027239,0.02,2588.9,2588.8,3.659056]
[1749120027446,0.02,2588.9,2588.8,2.367056]
[1749120027715,0.02,2588.9,2588.8,6.22984957]
[1749120028104,0.02,2588.9,2588.8,10.0]
[1749120028322,0.02,2588.9,2588.7,3.8628231]
[1749120028487,0.02,2588.9,2588.8,13.86279357]
[1749120028822,0.02,2588.9,2588.8,17.03258957]
[1749120029183,0.02,2588.9,2588.8,3.86279357]
[1749120029519,0.02,2588.9,2588.8,7.12845257]
[1749120030107,0.02,2588.9,2588.8,23.12845257]
[1749120031434,0.02,2588.9,2588.8,23.52083028]
[1749120031986,0.02,2588.9,2588.8,31.85383028]
[1749120034723,0.02,2588.9,2588.8,30.94009228]
[1749120035318,0.02,2588.9,2588.8,36.85401628]
[1749120035689,0.02,2588.9,2588.8,28.58817128]
[1749120036019,0.02,2588.9,2588.8,31.35532228]
[1749120036733,0.02,2588.9,2588.8,24.72537771]
[1749120036945,1.5404,2588.9,2588.8,11.91444871]
[1749120037243,1.5404,2588.9,2588.8,9.23537771]
[1749120039500,1.5404,2588.9,2588.8,13.09817128]
[1749120039698,0.02,2588.9,2588.8,27.01998228]
[1749120039937,0.02,2588.9,2588.8,42.50998228]
[1749120042217,0.02,2588.9,2588.8,32.20636828]
[1749120044553,0.02,2588.9,2588.8,42.10236828]
[1749120044702,0.02,2588.9,2588.8,42.10036828]
[1749120045539,0.02,2588.9,2588.8,32.20636828]
[1749120045697,0.02,2588.9,2588.8,46.16836828]
[1749120047745,0.02,2588.9,2588.8,48.13705487]
[1749120047956,0.02,2588.9,2588.8,32.20636828]
[1749120048105,0.02,2588.9,2588.8,46.11736828]
[1749120048304,0.02,2588.9,2588.8,46.11036828]
[1749120048939,0.02,2588.9,2588.8,32.20636828]
[1749120049152,0.02,2588.9,2588.8,46.09436828]
[1749120049362,0.02,2588.9,2588.8,32.20716828]
[1749120049564,0.02,2588.9,2588.8,46.08416828]
[1749120050153,0.02,2588.9,2588.8,46.06916828]
[1749120050624,0.02,2588.9,2588.8,32.20716828]
[1749120050822,0.02,2588.9,2588.8,46.05416828]
[1749120052049,0.02,2588.9,2588.8,46.02216828]
[1749120052435,0.02,2588.9,2588.8,46.01466828]
[1749120053371,0.02,2588.9,2588.8,32.19966828]
[1749120053565,0.02,2588.9,2588.8,17.08777771]
[1749120053728,0.02,2588.9,2588.8,19.41432528]
[1749120053926,0.02,2588.9,2588.8,35.41432528]
[1749120054126,0.02,2588.9,2588.8,45.09732528]